Cogmind - Beta 10.1 @@@ ROGUE MODE // 2020.10.28 @ 08:27:47 Player: Boris Result: Destroyed by G-50 Soldier with Heavy Laser Performance ------------- Evolutions (3) 1500 Regions Visited (10) 2000 Robots Destroyed (198) 990 Value Destroyed (6657) 6657 Prototype IDs (22) 440 Alien Tech Used (0) 0 Bonus (730) 730 TOTAL SCORE: 12317 Bonus ------- High Alert Combat Kills 247 Follower Combat Kills 187 Met Data Miner 300 Friendly Fire -4 Cogmind --------- Core Integrity 0/700 Matter 267/300 Energy 325/325 System Corruption 3% Temperature Cool (9) Movement Walking (150) Ox1 Location -6/Proximity Caves Parts ------- > --- POWER (1) -------- Antimatter Reactor > --- PROPULSION (2) --- Enhanced Flexi-carbon Leg Enhanced Flexi-carbon Leg > --- UTILITY (7) ------ Advanced Heat Sink Large Storage Unit Large Storage Unit Large Storage Unit Layered Medium Armor Plating Layered Medium Armor Plating > --- WEAPON (3) ------- Neutron Cannon Improved Grenade Launcher > --- INVENTORY (22) --- Enhanced Flexi-carbon Leg Enhanced Flexi-carbon Leg Improved Energy Well (600) High-capacity Matter Pod (200) Long-range Terrain Scanner Improved Armor Integrity Analyzer Precision Energy Filter Advanced Particle Charger Weapon Cycler Layered Medium Armor Plating Layered Medium Armor Plating Advanced Force Field System Mapper Deep Network Scanner Makeshift System Shield Ghost Barrier EM Pulse Cannon Improved EM Pulse Cannon Shock Bomb Launcher Shock Bomb Launcher Greatsword Peak State ------------ > --- POWER ------------ Antimatter Reactor > --- PROPULSION ------- Enhanced Flexi-carbon Leg Enhanced Flexi-carbon Leg > --- UTILITY ---------- Large Storage Unit Large Storage Unit Large Storage Unit Advanced Signal Interpreter Layered Medium Armor Plating Layered Medium Armor Plating Hacking Suite > --- WEAPON ----------- Improved EM Pulse Cannon Molecular Deconstructor > --- INVENTORY -------- Antimatter Reactor Advanced Heat Sink Improved Energy Well High-capacity Matter Pod Improved Armor Integrity Analyzer Advanced Particle Charger Weapon Cycler System Mapper Deep Network Scanner System Shield Makeshift System Shield Ghost Barrier Heavy Plasma Cannon Heavy Plasma Cannon Neutron Cannon Shock Bomb Launcher Shock Bomb Launcher Improved Grenade Launcher Greatsword [Rating: 72] Favorites ----------- Power Improved Deuterium Engine Engine Improved Deuterium Engine Power Core Light Nuclear Core Reactor Antimatter Reactor Propulsion Armored Treads Treads Armored Treads Leg Enhanced Flexi-carbon Leg Wheel Wheel Utility Large Storage Unit Device Advanced Sensor Array Storage Large Storage Unit Processor Advanced Signal Interpreter Hackware Hacking Suite Protection Medium Armor Plating Weapon Heavy Assault Rifle Energy Gun Heavy Particle Gun Energy Cannon Improved EM Pulse Cannon Ballistic Gun Heavy Assault Rifle Launcher Grenade Launcher Special Weapon Mining Laser Slashing Weapon Greatsword Build | -11 -10 -10 -10 -9 -8 -7 -7 -7 -7 -6 ------- Run | Scr Mat Min Exi Min Mat Fac Low Low Dat Pro Slots Evolved 6 | . . . . . 4 2 . . . . Power . | . . . . . . . . . . . Propulsion . | . . . . . . . . . . . Utility 5 | . . . . . 3 2 . . . . Weapon 1 | . . . . . 1 . . . . . Parts Attached 236 | 6 18 7 3 1 49 79 23 12 21 17 Power 15 | 1 2 2 . 1 2 4 1 . 1 1 Engine 10 | 1 2 . . . 2 4 1 . . . Core 3 | . . 2 . 1 . . . . . . Reactor 2 | . . . . . . . . . 1 1 Propulsion 28 | 2 1 1 . . 11 7 1 . 5 . Treads 22 | 2 1 1 . . 10 7 1 . . . Leg 5 | . . . . . . . . . 5 . Wheel 1 | . . . . . 1 . . . . . Hover . | . . . . . . . . . . . Flight . | . . . . . . . . . . . Utility 67 | 1 3 . 3 . 13 25 9 1 5 7 Device 20 | . . . . . . 10 5 . 1 4 Storage 14 | 1 3 . 3 . 5 1 . . 1 . Processor 1 | . . . . . . 1 . . . . Hackware 6 | . . . . . 2 4 . . . . Protection 26 | . . . . . 6 9 4 1 3 3 Artifact . | . . . . . . . . . . . Weapon 126 | 2 12 4 . . 23 43 12 11 10 9 Energy Gun 29 | 1 4 2 . . 9 9 . 2 . 2 Energy Cannon 25 | . . . . . . 13 4 2 3 3 Ballistic Gun 46 | 1 5 . . . 10 16 7 4 2 1 Ballistic Cannon . | . . . . . . . . . . . Launcher 19 | . . 2 . . 3 4 1 3 3 3 Special Weapon 3 | . 1 . . . 1 . . . 1 . Impact Weapon . | . . . . . . . . . . . Slashing Weapon 4 | . 2 . . . . 1 . . 1 . Piercing Weapon . | . . . . . . . . . . . Special Melee Weapon . | . . . . . . . . . . . Unidentified Prototypes 7 | . . . . . 3 . . . 3 1 Parts Lost 36 | . 6 1 . . 14 5 2 . 3 5 Power 3 | . . . . . 2 . . . . 1 Propulsion 7 | . 1 1 . . 3 . . . 2 . Utility 8 | . . . . . 3 3 1 . . 1 Weapon 18 | . 5 . . . 6 2 1 . 1 3 Highest Loss Streak 9 | . 1 1 . . 9 2 1 . 2 3 Average Slot Usage (%) 98 | . 96 99 100 100 98 99 100 100 97 98 Engine 6 | . 14 1 . . 8 6 7 7 2 . Core 2 | . . 12 14 14 . . . . . . Treads 17 | . 27 27 28 28 17 14 15 15 3 . Leg 1 | . . . . . . . . . 11 15 Device 1 | . . . . . . 4 5 . . 8 Storage 24 | . 25 28 28 28 27 23 23 23 23 23 Processor 3 | . . . . . . 7 7 7 7 7 Hackware 9 | . . . . . 9 16 15 15 10 5 Protection 3 | . . . . . 8 1 1 7 10 7 Energy Gun 4 | . 5 11 . . 8 5 . 4 . . Energy Cannon 1 | . . . . . . 1 . . 9 5 Ballistic Gun 16 | . 21 14 14 14 17 15 22 16 5 9 Launcher 2 | . . 2 14 14 . . . 1 3 6 Naked Turns . | . . . . . . . . . . . Heaviest Build 100 | 12 22 27 57 57 73 87 80 81 96 100 Greatest Support 56 | 40 40 40 40 40 40 40 40 40 56 56 Greatest Overweight (x) 6 | . . . 1 1 6 3 1 2 4 1 Average Overweight (x) . | . . . . 1 1 1 1 1 1 1 Largest Inventory Capacity 24 | 6 12 12 18 18 24 22 22 22 22 22 Average Capacity 19 | 5 9 12 16 18 22 22 22 22 22 22 Most Carried 22 | 3 12 12 17 18 22 22 22 22 22 22 Average Carried 18 | 1 8 11 13 17 20 21 21 21 21 20 Final Capacity 22 | 6 12 12 18 18 22 22 22 22 22 22 Final Carried 22 | 3 12 12 16 18 22 22 21 22 22 22 Class Distribution -------------------- 24% | Hauler-Tank 20% | Mutant 13% | Hauler-Skirmisher 11% | Scavenger-Tank 10% | Hauler-Mutant 8% | Scavenger-Mutant 7% | Hacker-Gunner Dominant Class ---------------- Mutant | -10/Materials Scavenger-Mutant | -10/Mines Mutant | -10/Exiles Mutant | -9/Mines Hauler-Tank | -8/Materials Hacker-Gunner | -7/Factory Hauler-Skirmisher | -7/Lower Caves Hauler-Tank | -7/Lower Caves Scavenger-Mutant | -7/Data Miner Scavenger-Mutant | -6/Proximity Caves Resources | -11 -10 -10 -10 -9 -8 -7 -7 -7 -7 -6 ----------- Run | Scr Mat Min Exi Min Mat Fac Low Low Dat Pro Matter Collected 5049 | 266 256 254 . 130 1062 1572 360 519 289 341 Remotely . | . . . . . . . . . . . Salvage Created 7271 | 88 694 199 . 31 1830 2350 447 602 456 574 Parts 394 | 4 52 18 . 11 90 128 18 32 23 18 Haulers Intercepted 3 | . 1 . . . 1 . . . . 1 Recyclers Shooed 12 | . 4 . . . 4 4 . . . . Parts Field Recycled . | . . . . . . . . . . . Retrieved Matter . | . . . . . . . . . . . Parts Self-Destructed 61 | . . . . . . . 12 34 . 15 Prevented 6 | . . . . . . . . 6 . . Kills | -11 -10 -10 -10 -9 -8 -7 -7 -7 -7 -6 ------- Run | Scr Mat Min Exi Min Mat Fac Low Low Dat Pro Combat Hostiles Destroyed 164 | . 19 7 . 8 39 41 12 22 4 12 Melee 1 | . 1 . . . . . . . . . Guns 102 | . 18 5 . . 34 25 10 7 . 3 Cannons 8 | . . . . . . 4 1 2 . 1 AOE 47 | . . 2 . 8 5 11 1 12 . 8 Classes Destroyed 15 | 2 6 1 . . 2 1 1 1 . 1 Worker 5 | . 1 . . . . 4 . . . . Builder 2 | . . 1 . . 1 . . . . . Tunneler 1 | 1 . . . . . . . . . . Hauler 3 | . 1 . . . 1 . . . . 1 Recycler 10 | 1 . . . . 2 7 . . . . Operator 5 | . 2 . . . 2 1 . . . . Watcher 7 | . 2 . . . 4 1 . . . . Swarmer 61 | . 9 3 . 8 10 12 6 13 . . Grunt 70 | . 10 4 . . 18 16 4 7 . 11 Brawler 1 | . . . . . . . . . . 1 Duelist 1 | . . . . . . . . 1 . . Sentry 17 | . . . . . 10 6 1 . . . Hunter 3 | . . . . . 1 2 . . . . Programmer 6 | . . . . . . 5 . 1 . . Enhanced Grunt 4 | . . . . . . . . . 4 . Mutant 1 | . . . . . . . 1 . . . Best Kill Streak 8 | 2 3 3 . 3 8 7 4 7 2 5 Combat Bots Only 7 | . 3 3 . 3 7 5 4 7 2 5 Max Kills in Single Turn 5 | 1 1 2 . 3 3 5 2 4 2 3 Gunslinging 1 | . . . . . 1 . . . . . Exploded 4 | . . 2 . 3 1 4 1 4 . 3 Melee 1 | . 1 . . . . . . . . . Uniques/NPCs Destroyed 1 | . . . . . . . . . 1 . Data Miner (-7/Data Miner) Combat | -11 -10 -10 -10 -9 -8 -7 -7 -7 -7 -6 -------- Run | Scr Mat Min Exi Min Mat Fac Low Low Dat Pro Damage Taken 8781 | . 1026 142 . 83 2730 2389 508 549 663 691 Core 1160 | . 174 35 . 12 228 355 64 30 188 74 Absorbed by Shields . | . . . . . . . . . . . Core Remaining (%) 56 | 100 . . . 11 58 . . . . . Volleys Fired 525 | 6 92 16 . 4 118 129 23 34 65 38 Largest 3 | 2 2 2 . 1 3 3 3 3 3 3 Hottest 208 | 70 70 60 . 30 159 207 207 103 115 208 Shots Fired 1043 | 12 177 27 . 4 304 285 49 62 70 53 Gun 854 | 12 177 25 . . 292 241 43 45 . 19 Cannon 117 | . . . . . . 32 5 7 52 21 Launcher 62 | . . 2 . 4 9 12 1 10 11 13 Special 10 | . . . . . 3 . . . 7 . Kinetic 632 | 6 131 14 . . 198 183 43 42 . 15 Thermal 265 | 6 46 11 . . 97 72 . 8 . 25 Explosive 46 | . . 2 . 4 9 10 1 7 . 13 Electromagnetic 93 | . . . . . . 20 5 5 63 . Robot Hit Streak 23 | 8 20 18 . 1 18 17 15 7 23 15 Robot Miss Streak 10 | 2 5 1 . 1 3 10 5 6 2 1 Penetration Max 1 | . . . . . . . . . . 1 Secondary Targets 14 | . 2 . . . 4 3 4 . . 1 Max Gunslinging Chain 1 | . 1 . . . 1 1 1 . . 1 Shots Hit Robots 665 | 8 117 22 . 1 196 193 37 38 23 30 Core Hits 433 | 5 47 16 . 9 95 126 40 41 15 39 Critical Hits 4 | . 2 . . . . 1 . . . 1 Critical Kills 3 | . 2 . . . . . . . . 1 Critical Parts Destroyed 1 | . . . . . . 1 . . . . Melee Attacks 7 | . 5 . . . . 1 . . 1 . Impact . | . . . . . . . . . . . Slashing 7 | . 5 . . . . 1 . . 1 . Piercing . | . . . . . . . . . . . Sneak Attacks 1 | . . . . . . . . . 1 . Combat Hostiles . | . . . . . . . . . . . Follow-up Attacks . | . . . . . . . . . . . Damage Inflicted 15686 | 113 1137 424 . 416 3956 4418 638 1845 675 2064 Guns 8549 | 113 1027 198 . . 3002 2796 513 543 . 357 Cannons 1018 | . . . . . . 524 62 55 215 162 Explosions 5697 | . . 220 . 401 820 1087 63 1247 314 1545 Melee 239 | . 93 . . . . . . . 146 . Ramming 183 | . 17 6 . 15 134 11 . . . . Kinetic 5699 | 51 677 76 . . 1633 1956 513 501 . 292 Thermal 3196 | 62 350 122 . 29 1369 995 . 42 . 227 Explosive 4909 | . . 220 . 372 820 976 63 913 . 1545 Electromagnetic 1460 | . . . . . . 480 62 389 529 . Impact . | . . . . . . . . . . . Slashing 239 | . 93 . . . . . . . 146 . Piercing . | . . . . . . . . . . . Highest Corruption 3 | . . . . . . . . . . 3 Average Corruption 3 | . . . . . . . . . . 3 Corruption Purged . | . . . . . . . . . . . Overload Shots . | . . . . . . . . . . . Overflow Damage 115 | . . . . 16 56 19 . 13 . 11 Projectiles . | . . . . . . . . . . . Explosions 103 | . . . . 16 44 19 . 13 . 11 Melee 12 | . . . . . 12 . . . . . Knockbacks . | . . . . . . . . . . . Impact . | . . . . . . . . . . . Kinetic . | . . . . . . . . . . . Secondary . | . . . . . . . . . . . Self-Inflicted Damage 302 | . . . . 38 79 25 . 1 . 159 Shots 16 | . . . . 2 6 2 . 1 . 5 Rammed 23 | . 3 2 . 3 11 4 . . . . Targets Rammed 27 | . 3 3 . 3 14 4 . . . . Kicked . | . . . . . . . . . . . Crushed 4 | . . 1 . . 3 . . . . . Highest Temperature 319 | 70 145 99 . . 256 319 167 120 245 141 Average Temperature 73 | 33 42 40 . . 82 88 55 26 101 36 Received Heat Transfer 2484 | . 330 63 . 6 1161 468 96 45 84 231 Effects 4 | . . . . . . 3 . . 1 . Energy Bleed 4 | . . . . . . 3 . . 1 . Siege Activations . | . . . . . . . . . . . Robots Corrupted 6 | . . . . . . 1 . 1 4 . Combat Hostiles 6 | . . . . . . 1 . 1 4 . Parts Fried 24 | . . . . . 2 5 . 5 12 . Impact Corruptions 2 | . . . . . 2 . . . . . Robots Melted . | . . . . . . . . . . . Combat Hostiles . | . . . . . . . . . . . Parts Melted 5 | . 2 1 . . 1 1 . . . . Heat Transferred 6083 | 185 856 275 . 50 2590 1717 . 74 . 336 Parts Sabotaged . | . . . . . . . . . . . Parts Stolen . | . . . . . . . . . . . Parts Stripped . | . . . . . . . . . . . Power Chain Reactions . | . . . . . . . . . . . Missiles Intercepted . | . . . . . . . . . . . Alert | -11 -10 -10 -10 -9 -8 -7 -7 -7 -7 -6 ------- Run | Scr Mat Min Exi Min Mat Fac Low Low Dat Pro Peak Influence 772 | 10 245 157 . 155 491 772 . . . . Initial 56 | . 6 56 . . 29 53 . . . . Average 179 | 4 106 68 . 55 147 294 . . . . Maximum Alert Level 3 | . 1 . . . 2 3 . . . . Low Security (%) 63 | 100 90 100 . 100 66 33 . . . . Level 1 27 | . 9 . . . 30 45 . . . . Level 2 6 | . . . . . 3 16 . . . . Level 3 1 | . . . . . . 4 . . . . Level 4 . | . . . . . . . . . . . Level 5 . | . . . . . . . . . . . High Security . | . . . . . . . . . . . Max Security . | . . . . . . . . . . . Squads Dispatched 17 | . 4 . . . 5 7 . 1 . . Investigation 5 | . 2 . . . 1 1 . 1 . . Extermination 5 | . . . . . . 5 . . . . Reinforcement 7 | . 2 . . . 4 1 . . . . Assault . | . . . . . . . . . . . Garrison . | . . . . . . . . . . . Intercept . | . . . . . . . . . . . Construction Impeded 2 | . . . . . 2 . . . . . Haulers Reinforced . | . . . . . . . . . . . Stealth | -11 -10 -10 -10 -9 -8 -7 -7 -7 -7 -6 --------- Run | Scr Mat Min Exi Min Mat Fac Low Low Dat Pro Distress Signals 9 | . 3 . . . 4 2 . . . . Communications Jammed . | . . . . . . . . . . . Distress Signals . | . . . . . . . . . . . Times Spotted 256 | . 39 8 . 10 77 69 12 22 4 15 Peak Tracking Total 8 | . 5 3 . 3 8 4 4 4 2 5 Tactical Retreats 17 | . 5 . . 1 4 6 . . . 1 Traps | -11 -10 -10 -10 -9 -8 -7 -7 -7 -7 -6 ------- Run | Scr Mat Min Exi Min Mat Fac Low Low Dat Pro Traps Triggered 9 | . 1 . . . . 8 . . . . Indirectly . | . . . . . . . . . . . Trap Hack Attempts . | . . . . . . . . . . . Triggered . | . . . . . . . . . . . Disarmed . | . . . . . . . . . . . Reprogrammed 6 | . . . . . 6 . . . . . Reused 5 | . . . . . 5 . . . . . Traps Extracted . | . . . . . . . . . . . Installed . | . . . . . . . . . . . Triggered 7 | . . . . . 5 . . 2 . . Machines | -11 -10 -10 -10 -9 -8 -7 -7 -7 -7 -6 ---------- Run | Scr Mat Min Exi Min Mat Fac Low Low Dat Pro Machines Disabled 6 | . . . . 1 . 1 2 1 1 . Max in Single Turn 1 | . . . . 1 . 1 1 1 1 . Garrison Access 2 | . . . . . 1 1 . . . . Machines Sabotaged . | . . . . . . . . . . . Garrisons Compromised . | . . . . . . . . . . . Overloaded Fab Kills . | . . . . . . . . . . . Fab Network Shutdowns . | . . . . . . . . . . . Hacking | -11 -10 -10 -10 -9 -8 -7 -7 -7 -7 -6 --------- Run | Scr Mat Min Exi Min Mat Fac Low Low Dat Pro Machines Accessed 47 | . 8 . 1 . 15 16 1 2 4 . Terminals 25 | . 6 . . . 10 7 1 1 . . Fabricators 3 | . . . . . . 3 . . . . Repair Stations 3 | . . . . . 1 2 . . . . Recycling Units 4 | . 2 . . . 1 1 . . . . Scanalyzers 4 | . . . . . 2 2 . . . . Garrison Access 2 | . . . . . 1 1 . . . . Total Hacks 177 | . 20 . 1 . 79 39 8 5 25 . Successful 141 | . 13 . 1 . 64 25 8 5 25 . Failed 35 | . 7 . . . 14 14 . . . . Catastrophic 3 | . . . . . . 3 . . . . Database Lockouts 1 | . . . . . 1 . . . . . Manual 59 | . 11 . . . 32 14 1 1 . . Terminals 98 | . 15 . . . 54 17 8 4 . . Fabricators 6 | . . . . . . 6 . . . . Repair Stations 10 | . . . . . 4 6 . . . . Recycling Units 10 | . 5 . . . 2 3 . . . . Scanalyzers 24 | . . . . . 18 6 . . . . Garrison Access 2 | . . . . . 1 1 . . . . Terminal Hacks 79 | . 8 . 1 . 27 5 8 5 25 . Record 24 | . . . 1 . . . 8 4 11 . Part Schematic 11 | . 1 . . . . 2 . . 8 . Robot Schematic 6 | . . . . . . . . . 6 . Robot Analysis 7 | . 3 . . . 3 1 . . . . Prototype ID Bank 4 | . 1 . . . 3 . . . . . Open Door 1 | . . . . . . . . 1 . . Branch Access Points 2 | . 1 . . . 1 . . . . . Emergency Access Points 1 | . . . . . 1 . . . . . Machine Index 1 | . . . . . 1 . . . . . Alert Level 2 | . . . . . 2 . . . . . Unreport Threat 5 | . . . . . 5 . . . . . Locate Traps 2 | . . . . . 1 1 . . . . Reprogram Traps 1 | . . . . . 1 . . . . . Dispatch Records 1 | . . . . . 1 . . . . . Patrol Status 1 | . . . . . 1 . . . . . Investigation Status 1 | . . . . . 1 . . . . . Recall Investigation 1 | . 1 . . . . . . . . . Hauler Manifests 4 | . 1 . . . 3 . . . . . Registered Components 1 | . . . . . 1 . . . . . Registered Prototypes 1 | . . . . . 1 . . . . . Zone Layout 2 | . . . . . 1 1 . . . . Fabricator Hacks 3 | . . . . . . 3 . . . . Load Schematic 1 | . . . . . . 1 . . . . Build 2 | . . . . . . 2 . . . . Repair Station Hacks 10 | . . . . . 4 6 . . . . Scan Component 5 | . . . . . 2 3 . . . . Repair 5 | . . . . . 2 3 . . . . Recycling Unit Hacks 5 | . 2 . . . 1 2 . . . . Process 1 | . . . . . . 1 . . . . Retrieve Components 4 | . 2 . . . 1 1 . . . . Scanalyzer 20 | . . . . . 17 3 . . . . Insert Component 9 | . . . . . 7 2 . . . . Analyze 11 | . . . . . 10 1 . . . . Garrison Access Hacks 2 | . . . . . 1 1 . . . . Seal Access 2 | . . . . . 1 1 . . . . Unauthorized Hacks 22 | . 3 . . . 14 5 . . . . Terminals 17 | . 2 . . . 13 2 . . . . Track 5 | . . . . . 5 . . . . . Assimilate 1 | . . . . . 1 . . . . . Botnet 8 | . 2 . . . 4 2 . . . . Disrupt 1 | . . . . . 1 . . . . . Operators 2 | . . . . . 2 . . . . . Fabricators 2 | . . . . . . 2 . . . . Report 1 | . . . . . . 1 . . . . Prioritize 1 | . . . . . . 1 . . . . Repair Stations . | . . . . . . . . . . . Recycling Units 1 | . 1 . . . . . . . . . Tunnel 1 | . 1 . . . . . . . . . Scanalyzers 2 | . . . . . 1 1 . . . . Researchers 1 | . . . . . . 1 . . . . Extract 1 | . . . . . 1 . . . . . Garrison Access . | . . . . . . . . . . . Data Cores Recovered . | . . . . . . . . . . . Used . | . . . . . . . . . . . Hacking Detections 37 | . 8 . . . 12 15 1 1 . . Full Trace Events 2 | . . . . . . 1 . 1 . . Feedback Events 1 | . . . . . . 1 . . . . Hackware Fried 1 | . . . . . . 1 . . . . Feedback Blocked . | . . . . . . . . . . . Robot Schematics Acquired 6 | . . . . . . . . . 6 . Robots Built . | . . . . . . . . . . . Matter . | . . . . . . . . . . . Time . | . . . . . . . . . . . Total Robot Build Rating . | . . . . . . . . . . . Part Schematics Acquired 22 | . 1 . . . 10 3 . . 8 . Parts Built 4 | . . . . . . 4 . . . . Matter 336 | . . . . . . 336 . . . . Time 120 | . . . . . . 120 . . . . Total Part Build Rating 16 | . . . . . . 16 . . . . Parts Repaired 5 | . . . . . 2 3 . . . . Time 218 | . . . . . 98 120 . . . . Parts Recycled . | . . . . . . . . . . . Recycled Matter . | . . . . . . . . . . . Retrieved Matter . | . . . . . . . . . . . Retrieved Components 30 | . 15 . . . 9 6 . . . . Parts Scanalyzed 9 | . . . . . 7 2 . . . . Part Schematics Acquired 8 | . . . . . 7 1 . . . . Parts Damaged . | . . . . . . . . . . . Bothacking | -11 -10 -10 -10 -9 -8 -7 -7 -7 -7 -6 ------------ Run | Scr Mat Min Exi Min Mat Fac Low Low Dat Pro Used RIF Installer . | . . . . . . . . . . . Robots Hacked . | . . . . . . . . . . . Non-combat . | . . . . . . . . . . . Combat . | . . . . . . . . . . . Robot Hacks Applied . | . . . . . . . . . . . Relay Couplers Released . | . . . . . . . . . . . Robots Rewired . | . . . . . . . . . . . Allies Hacked . | . . . . . . . . . . . Hacks Repelled . | . . . . . . . . . . . Allies | -11 -10 -10 -10 -9 -8 -7 -7 -7 -7 -6 -------- Run | Scr Mat Min Exi Min Mat Fac Low Low Dat Pro Total Allies 5 | . . 2 . 3 . . . . . . Largest Group 3 | . . 2 1 3 2 . . . . . Highest-Rated Group 42 | . . 42 11 40 32 . . . . . Highest-Rated Ally 31 | . . 31 11 16 16 . . . . . Total Orders . | . . . . . . . . . . . Ally Attacks 45 | . . 8 . 15 22 . . . . . Total Damage 548 | . . 151 . 153 244 . . . . . Kills 8 | . . 2 . 4 2 . . . . . Allies Corrupted . | . . . . . . . . . . . Allies Melted . | . . . . . . . . . . . Intel | -11 -10 -10 -10 -9 -8 -7 -7 -7 -7 -6 ------- Run | Scr Mat Min Exi Min Mat Fac Low Low Dat Pro Robot Analysis Total 7 | . 3 . . . 3 1 . . . . Derelict Logs Recovered 6 | . . 1 . 2 . . . 2 . 1 Drone Launches . | . . . . . . . . . . . Drone Recoveries . | . . . . . . . . . . . Exploration | -11 -10 -10 -10 -9 -8 -7 -7 -7 -7 -6 ------------- Run | Scr Mat Min Exi Min Mat Fac Low Low Dat Pro Turns Passed 15400 | 119 1523 722 573 972 3429 3803 1396 1445 838 580 Spaces Moved 7167 | 59 714 389 322 517 1448 1641 688 715 373 301 Core 3 | 3 . . . . . . . . . . Treads 6570 | 56 714 389 322 517 1446 1641 688 715 82 . Legs 592 | . . . . . . . . . 291 301 Wheels 2 | . . . . . 2 . . . . . Hover . | . . . . . . . . . . . Flight . | . . . . . . . . . . . Fastest Speed 50 | 50 160 160 160 180 140 190 185 185 150 150 Average Speed 179 | 154 160 160 175 180 188 190 188 185 159 150 Slowest Speed 250 | 160 160 160 180 180 220 230 190 205 250 150 Overloaded Moves . | . . . . . . . . . . . Propulsion Burnouts . | . . . . . . . . . . . Robots Hopped . | . . . . . . . . . . . Cave-ins Triggered . | . . . . . . . . . . . Exploration Rate (%) 71 | 3 92 77 75 98 82 52 85 73 97 48 Regions Visited 10 Branch Regions 7 Pre-discovered Areas 5 | . 1 . 1 1 . . 1 . 1 . Known Exits Taken 5 | . 1 . . . . 1 1 1 1 . Unknown Exits Taken 5 | 1 . 1 1 1 1 . . . . . Scrap Searched 6 | . . 2 . 1 . . 1 1 . 1 Spaces Dug 41 | . 1 . . . 3 10 . 15 . 12 Terrain Destroyed 331 | . 1 15 . 42 53 66 15 34 . 105 Melee 1 | . 1 . . . . . . . . . Projectile 35 | . . . . . 3 10 . 6 . 16 AOE 295 | . . 15 . 42 50 56 15 28 . 89 Terrain Rammed . | . . . . . . . . . . . Walls Destroyed . | . . . . . . . . . . . Machines Disabled . | . . . . . . . . . . . Actions | -11 -10 -10 -10 -9 -8 -7 -7 -7 -7 -6 --------- Run | Scr Mat Min Exi Min Mat Fac Low Low Dat Pro Total 8802 | 73 933 462 332 553 1910 2087 742 784 549 377 Wait 583 | . 75 42 . 26 207 169 . 5 44 15 Move 7157 | 58 713 388 321 516 1447 1640 687 714 372 301 Hop . | . . . . . . . . . . . Pick Up 136 | 3 18 3 5 2 38 33 4 8 20 2 Fast Attach 47 | 6 3 1 . . 11 11 1 3 8 3 Attach 52 | . 5 2 . . 13 14 3 1 10 4 Detach 8 | . . . . . 1 1 . 1 2 3 Swap 137 | . 10 4 3 1 25 54 19 8 3 10 Drop 121 | . 9 3 3 1 36 29 5 10 24 1 Fire 525 | 6 92 16 . 4 118 129 23 34 65 38 Melee 7 | . 5 . . . . 1 . . 1 . Ram . | . . . . . . . . . . . Kick . | . . . . . . . . . . . Crush 27 | . 3 3 . 3 14 4 . . . . Escape Stasis 2 | . . . . . . 2 . . . . Rewire . | . . . . . . . . . . . Trap . | . . . . . . . . . . . Miscellaneous . | . . . . . . . . . . . Route ------- -11/Scrapyard -10/Materials (discovered 4 exits: [*Mat x3] / *Min) -10/Mines (discovered 3 exits: [*Mat x2] / *Exi) -10/Exiles (discovered 2 exits: [*Min x2]) -9/Mines (discovered 2 exits: *Mat x2) -8/Materials (discovered 2 exits: *Fac x2) -7/Factory (discovered 2 exits: *Fac / *Low) -7/Lower Caves -7/Lower Caves (discovered 2 exits: *Fac / *Dat) -7/Data Miner -6/Proximity Caves (discovered 1 exit: *Fac) History --------- Turn | Location | Event 6 | -11/Scrapyard | Discovered new exit (range 14) 120 | -11/Scrapyard | Entered Materials 300 | -10/Materials | Build established: Mutant 789 | -10/Materials | Discovered new exit (range 3) 1133 | -10/Materials | Discovered new exit (range 16) 1238 | -10/Materials | Core integrity fell below 50% 1370 | -10/Materials | Discovered new exit (range 13) 1374 | -10/Materials | Identified exit to Mines 1643 | -10/Materials | Entered Mines 1695 | -10/Mines | Discovered new exit (range 9) 1822 | -10/Mines | Discovered new exit (range 9) 2033 | -10/Mines | Build established: Scavenger-Mutant 2245 | -10/Mines | Deemed a non-threat by the Exiles lab entrance 2245 | -10/Mines | Discovered new exit (range 5) 2270 | -10/Mines | Core integrity fell below 20% 2365 | -10/Mines | Entered Exiles 2365 | -10/Exiles | Accompanied by 1 ally 2389 | -10/Exiles | Discovered new exit (range 15) 2405 | -10/Exiles | Met 8R-AWN 2433 | -10/Exiles | Met EX-HEX 2543 | -10/Exiles | Met EX-DEC 2587 | -10/Exiles | Visited The Gauntlet 2796 | -10/Exiles | Build established: Mutant 2802 | -10/Exiles | Learned location of Zion (-6) 2924 | -10/Exiles | Discovered new exit (range 10) 2938 | -10/Exiles | Entered Mines 3126 | -9/Mines | Received a Rocket Launcher from a helpful Derelict 3133 | -9/Mines | Learned Materials stockpile data 3261 | -9/Mines | Assisted by bots powering up and referring to "LRC-V3" 3396 | -9/Mines | Discovered new exit (range 14) 3402 | -9/Mines | Discovered new exit (range 8) 3434 | -9/Mines | Learned location of Storage (-9) 3910 | -9/Mines | Entered Materials 3910 | -8/Materials | Accompanied by 2 allies 3910 | -8/Materials | Evolved 4 slots: Utility x3, Weapon x1 4118 | -8/Materials | Lost 9 parts (1p2n1u5w) 4126 | -8/Materials | Destroyed 7 combat bots 4383 | -8/Materials | Discovered new exit (range 15) 4520 | -8/Materials | Build established: Hauler-Tank 4818 | -8/Materials | Central database locked down 4840 | -8/Materials | Discovered new exit (range 7) 4905 | -8/Materials | Build established: Scavenger-Tank 5283 | -8/Materials | Build established: Hauler-Tank 6166 | -8/Materials | Repaired Arm. Treads 6227 | -8/Materials | Repaired Hvy. Particle Gun 7339 | -8/Materials | Entered Factory 7339 | -7/Factory | Evolved 2 slots: Utility x2 7655 | -7/Factory | Build established: Hauler-Skirmisher 8404 | -7/Factory | Fabricated Hvy. Plasma Cannon (x2) 8483 | -7/Factory | Build established: Hauler-Mutant 8865 | -7/Factory | Fabricated Arm. Treads (x2) 8958 | -7/Factory | Build established: Hacker-Gunner 10328 | -7/Factory | Repaired Arm. Treads 10343 | -7/Factory | Discovered new exit (range 15) 10368 | -7/Factory | Identified exit to Factory 10577 | -7/Factory | Repaired Adv. Sensor Array 10634 | -7/Factory | Repaired Imp. Deuterium Engine 10834 | -7/Factory | Core integrity fell below 50% 11028 | -7/Factory | Discovered new exit (range 5) 11036 | -7/Factory | Identified exit to Lower Caves 11103 | -7/Factory | Imp. System Shield fried by hacking feedback 11142 | -7/Factory | Entered Lower Caves 11456 | -7/Lower Caves | Attracted the attention of an 0b10 base 11499 | -7/Lower Caves | Learned Armory terminal intel 11499 | -7/Lower Caves | Learned Research security intel 11499 | -7/Lower Caves | Learned Extension emergency access door positions 11499 | -7/Lower Caves | Identified exit to Lower Caves 11499 | -7/Lower Caves | Learned location of 1 exit from Lower Caves 11794 | -7/Lower Caves | Build established: Hauler-Skirmisher 11918 | -7/Lower Caves | Attacked by a delusional Derelict stockpiling parts 12146 | -7/Lower Caves | Attracted the attention of an 0b10 checkpoint 12276 | -7/Lower Caves | Acquired the password to a Derelict Tinkerer's latest research 12300 | -7/Lower Caves | Found Prototype Special Weapon 12538 | -7/Lower Caves | Entered another Lower Caves area 12573 | -7/Lower Caves | Build established: Scavenger-Tank 12701 | -7/Lower Caves | Learned Factory security intel 13060 | -7/Lower Caves | Learned Factory stockpile data 13246 | -7/Lower Caves | Spotted B-75 Beast 13379 | -7/Lower Caves | Build established: Hauler-Tank 13583 | -7/Lower Caves | Discovered new exit (range 12) 13602 | -7/Lower Caves | Identified exit to Data Miner 13689 | -7/Lower Caves | Attracted the attention of an 0b10 base 13721 | -7/Lower Caves | Destroyed 7 combat bots 13736 | -7/Lower Caves | Learned 8 Research zone layouts 13736 | -7/Lower Caves | Learned 6 Proximity Caves zone layouts 13736 | -7/Lower Caves | Learned Factory garrison access intel 13983 | -7/Lower Caves | Entered Data Miner 13983 | -7/Data Miner | Discovered new exit (range 6) 14019 | -7/Data Miner | Met Data Miner 14069 | -7/Data Miner | Learned location of Section 7 (-2) 14069 | -7/Data Miner | Acquired the access code to Warlord's prototype stash 14083 | -7/Data Miner | Received God Mode back door access code from Data Miner 14129 | -7/Data Miner | Destroyed Data Miner 14147 | -7/Data Miner | Data Conduit disabled 14173 | -7/Data Miner | Found Prototype Hackware 14176 | -7/Data Miner | Found Prototype Hackware 14179 | -7/Data Miner | Found Prototype Hackware 14246 | -7/Data Miner | Core integrity fell below 20% 14337 | -7/Data Miner | Identified Molecular Deconstructor 14540 | -7/Data Miner | Identified exit to Proximity Caves 14821 | -7/Data Miner | Entered Proximity Caves 14913 | -6/Proximity Caves | Learned 4 Factory zone layouts 15030 | -6/Proximity Caves | Lost 3 parts (1p2w) 15234 | -6/Proximity Caves | Build established: Scavenger-Mutant 15401 | -6/Proximity Caves | Destroyed by G-50 Soldier with Heavy Laser Last Messages --------------- 15257_ Acquired 10 matter. 15258_ Imp. Ion Engine fries itself beyond repair. 15259_ The unstable cave ceiling collapses. 15259_ Discarded Hacking Suite. 15261_ Adv. Weight Redist. System fries itself beyond repair. 15261_ Acquired Lyr. Medium Armor Plating. 15262_ Acquired 10 matter. 15265_ Acquired Lyr. Medium Armor Plating. 15270_ Acquired 30 matter. 15280_ The unstable cave ceiling collapses. 15280_ Dropped Hvy. Plasma Cannon. 15283_ Acquired Lrn. Terrain Scanner. 15296_ The unstable cave ceiling collapses. 15400_ C-30 ARC bursts open, deploying its payload. 15400_ B-48 Gladiator unfolds itself. 15400_ G-50 Soldier unfolds itself. 15400_ Adv. Signal Interpreter destroyed. 15400_ System corrupted by crushing effect (+3). 15400_ Knocked back. 15400_ Gauss Rifle destroyed. Map ----- +----------------------------------------------------+ | ?? ??????????????????????????????????????????????? | | ???????????????????? ? ??????????????????????????? | | ?????????????????????????????????????????????????? | | ???????? ? ??????? ??????????????????????????????? | | ?????????? ????###### ###### #???????? | | ????????? ??#???# #???????? | | ????????? ? #??### ???????? | | ??????? ###### ###### ???????? | | ???????? ? ### ##???## ???????? | | ???????? ?? #?## ##???## ???????? | | ???????? ? ???## #??# #????# ???????? | | ???????? ?????# #??## #????# ???????? | | ?????### ? ??????# ##### #???## ???????? | | #???## #? #??????# ## #???# ???????? | | ???## ## #?????## # ##??# ???????? | | ??## #??????# # ##### " ???????? | | ### #??????# ## ##### "" ???????? | | ##??????### ### #??# """???????? | | ##?????# # ### #??# " ???????? | | ##### ####### ## ### #??# ""???????? | | ????# ## ## #?## #### " ???????? | | #???##### ## #??# " ???????? | | ????????# #### ## #??# ???????? | | ???????## #??## # #### ### ???????? | | ??????? #???##### ## ## ##?##### ???????? | | ???? ##?????## @ ###??????##???????? | | # ??? ### ???????## g ##????????#???????? | | ?#? ## ??## #?#????## bg #????????????????? | | ??##??#????## ##?????## #????????????????? | | ???????#??#?###??????# ##????????????????? | | ?????????????????????# #?????????????????? | | ???####??????????????### ###?????????????????? | | ??## #????????????????## #???????????????????? | | ?## #?????????????????######???????????????????? | | ## ##???????????????????????????????????#??????? | | # ##???????????????????????????????????????????? | | #????????????????????????????????????????????? | | ##???????????????????????????????????????????? | | ##???????????????????#??????????????????????? | | ##???????#?????????????????????????????????? | | #?????????????????????????????????????????? | | ##????????????????????????????????????????? | | ##?????????????????????????????????????????? | | ## #?#????????????????????????????????????????? | | ### ##?????????????????????????????????????????? | | ??## #?????????????????????????????????????????? | | ???# #?????????????????????????????????????????? | | ???# #?????????????????????????????????????????? | | ???# #?????????????????????????????????????????? | | #### #?????????????????????????????????????????? | +----------------------------------------------------+ Best States ------------- Heat Dissipation 53 Energy Generation 21 Energy Capacity 325 Matter Stores 300 Matter Capacity 300 Sight Range 16 Robot Scan Range 16 Terrain Scan Range 24 Terrain Scan Density 10 Armor Coverage 450 Weapon Cycling 15 Melee Speed Boost 20 Evasion (%) 40 Recoil Reduction 2 Offensive Hacking 30 Defensive Hacking 10 Item Schematics ----------------- Lrg. Storage Unit | -10/Materials | Hacked Enh. Autogun | -8/Materials | Scanalyzed System Shield | -8/Materials | Scanalyzed Hacking Suite | -8/Materials | Scanalyzed Lgt. Armor Plating | -8/Materials | Scanalyzed Med. Armor Plating | -8/Materials | Scanalyzed Arm. Treads | -8/Materials | Scanalyzed Shock Bomb Launcher | -8/Materials | Scanalyzed Flail | -8/Materials | Extracted Target Analyzer | -8/Materials | Extracted Insulated Plating | -8/Materials | Extracted Power Sword | -7/Factory | Hacked Imp. EM Pulse Cannon | -7/Factory | Scanalyzed KE Penetrator | -7/Factory | Hacked Combat Drone Bay | -7/Data Miner | Free Lgt. Regenerative Plating | -7/Data Miner | Free Cmb. Gravmag System | -7/Data Miner | Free Exp. Sensor Array | -7/Data Miner | Free Tactical Coordination Suite | -7/Data Miner | Free Exp. Transmission Jammer | -7/Data Miner | Free Mni. Smartbomb Launcher | -7/Data Miner | Free Plasma Sword | -7/Data Miner | Free Robot Schematics ------------------ S-27 Virus | -7/Data Miner | Free G-50 Soldier | -7/Data Miner | Free L-41 Fighter | -7/Data Miner | Free X-72 Disruptor | -7/Data Miner | Free H-66 Slayer | -7/Data Miner | Free I-36 Angel | -7/Data Miner | Free Fabricated ------------ Hvy. Plasma Cannon | x2 | -7/Factory | Preloaded Arm. Treads | x2 | -7/Factory Alien Tech Used ----------------- None Achievements -------------- Maximum Efficiency Challenges ------------ None Game ------ Seed PowerDataGreatsword Manual? 0 Play Time 02:01:30 Cumulative 118.6 hours Start 2020.10.27 @ 15:52:50 End 2020.10.28 @ 08:27:47 Sessions 3 Manual Loads 0 Difficulty Rogue Special Mode None Game No. 42 Rogue 27 Adventurer 15 Explorer 0 Win Type - Total 3 Types 1/0/1/1/0/0/0/0/0 Lore% 74 Gallery% 72 Achievement% 60 Wizard Run 0 Options --------- ASCII 0 Keyboard 0 Movement Numpad Keybinds 0 Fullscreen 1 Font 18/SmallcapsGlow Map View 76x50 Tactical HUD 1 Map Filters NONE Filters NONE Steam 1 RUN: e2cdfa41-bc6b-44fb-97e3-fd109c87ece2